bitfinex/quotes_BTCUSD_20241211
["timestamp","ask_amount","ask_price","bid_price","bid_amount"]
[1733916752464,0.29432524,98492.0,98491.0,0.0024]
[1733916752671,0.28532524,98492.0,98491.0,0.0014]
[1733916753108,0.29432524,98492.0,98491.0,0.0024]
[1733916753718,0.35552581,98492.0,98491.0,0.0034]
[1733916753878,0.29632524,98492.0,98491.0,0.0024]
[1733916754080,0.29632524,98492.0,98491.0,0.0834]
[1733916754281,0.29632524,98492.0,98491.0,0.1289]
[1733916754882,0.27832524,98492.0,98491.0,0.1269]
[1733916755079,0.28332524,98492.0,98491.0,0.1269]
[1733916755964,0.28332524,98492.0,98491.0,0.0004]
[1733916756198,0.27832524,98492.0,98491.0,0.0004]
[1733916756338,0.28732524,98492.0,98491.0,0.0014]
[1733916756536,0.27832524,98492.0,98491.0,0.0004]
[1733916756951,0.28732524,98492.0,98491.0,0.0004]
[1733916757154,0.32516424,98492.0,98491.0,0.0004]
[1733916757959,0.33116424,98492.0,98491.0,0.0014]
[1733916758178,0.35384858,98492.0,98491.0,0.0014]
[1733916758378,0.36284858,98492.0,98491.0,0.0024]
[1733916758732,0.31000958,98492.0,98491.0,0.0004]
[1733916758896,0.31000958,98492.0,98491.0,0.0014]
[1733916758897,0.31500958,98492.0,98491.0,0.0014]
[1733916759118,0.32400958,98492.0,98491.0,0.0014]
[1733916759384,0.31900958,98492.0,98491.0,0.0004]
[1733916759550,0.32800958,98492.0,98491.0,0.0014]
[1733916760161,0.33300958,98492.0,98491.0,0.0014]
[1733916762707,0.33300958,98492.0,98491.0,0.1296]
[1733916762708,0.31000958,98492.0,98491.0,0.1296]
[1733916762938,0.16000958,98492.0,98491.0,0.1375992]
[1733916763169,0.12832524,98492.0,98491.0,0.15039811]
[1733916764316,0.12832524,98492.0,98491.0,0.13759149]
[1733916765128,0.12332524,98492.0,98491.0,0.13759149]
[1733916765327,0.12332524,98492.0,98491.0,0.14937918]
[1733916765328,0.10532524,98492.0,98491.0,0.14937918]
[1733916765531,0.11032524,98492.0,98491.0,0.14937918]
[1733916765766,0.11932524,98492.0,98491.0,0.15037918]
[1733916765969,0.11432524,98492.0,98491.0,0.15037918]
[1733916766308,0.11432524,98492.0,98491.0,0.15637918]
[1733916767798,0.11432524,98492.0,98491.0,0.15636169]
[1733916768194,0.11432524,98492.0,98491.0,0.15136169]
[1733916768761,0.11432524,98492.0,98491.0,0.14936169]
[1733916769647,0.11432524,98492.0,98491.0,0.13658476]
[1733916769826,0.11432524,98492.0,98491.0,0.13858476]
[1733916771186,0.11432524,98492.0,98491.0,0.1306]
[1733916771409,0.11432524,98492.0,98491.0,0.13858215]
[1733916771631,0.12575776,98492.0,98491.0,0.13858215]
[1733916772114,0.11432524,98492.0,98491.0,0.13858215]
[1733916772844,0.11432524,98492.0,98491.0,0.1306]
[1733916773073,0.10532524,98492.0,98491.0,0.1236]
[1733916773501,0.11032524,98492.0,98491.0,0.1236]
[1733916774375,0.10732524,98492.0,98491.0,0.1236]
[1733916774903,0.10532524,98492.0,98491.0,0.1236]
[1733916775104,0.10732524,98492.0,98491.0,0.13166634]
[1733916775705,0.10532524,98492.0,98491.0,0.13166634]
[1733916775911,0.11032524,98492.0,98491.0,0.13166634]
[1733916776063,0.10732524,98492.0,98491.0,0.13166634]
[1733916776486,0.10632524,98492.0,98491.0,0.13166634]
[1733916776900,0.10732524,98492.0,98491.0,0.13166634]
[1733916777701,0.10732524,98492.0,98491.0,0.1236]
[1733916777920,0.10732524,98492.0,98491.0,0.13166509]
[1733916781001,0.10732524,98492.0,98491.0,0.1236]
[1733916781222,0.10732524,98492.0,98491.0,0.13166446]
[1733916781445,0.25732524,98492.0,98491.0,0.13166446]
[1733916783897,0.25732524,98492.0,98491.0,0.1236]
[1733916785647,0.25732524,98492.0,98491.0,0.13166666]
[1733916790256,0.25732524,98492.0,98491.0,0.1236]
[1733916791726,0.30605776,98492.0,98491.0,0.1236]
[1733916792567,0.30605776,98492.0,98491.0,0.13167611]
[1733916792994,0.30605776,98492.0,98491.0,0.1236]
[1733916793639,0.28032524,98492.0,98491.0,0.13173317]
[1733916794054,0.28032524,98492.0,98491.0,0.13986621]
[1733916794304,0.27832524,98492.0,98491.0,0.13986621]
[1733916794518,0.27932524,98492.0,98491.0,0.13986621]
[1733916795362,0.27832524,98492.0,98491.0,0.13173304]
[1733916795907,0.34697098,98492.0,98491.0,0.00813304]
[1733916797221,0.34797098,98492.0,98491.0,0.00813304]
[1733916798278,0.35297098,98492.0,98491.0,0.00813304]
[1733916798476,0.35197098,98492.0,98491.0,0.00813304]
[1733916798687,0.35497098,98492.0,98491.0,0.00813304]
[1733916799091,0.35197098,98492.0,98491.0,0.00813304]
[1733916799947,0.34697098,98492.0,98491.0,0.00813304]
[1733916800568,0.34897098,98492.0,98491.0,0.00813304]
[1733916800741,0.35297098,98492.0,98491.0,0.00813304]
[1733916801232,0.44216001,98492.0,98491.0,0.00813304]
[1733916801647,0.44416001,98492.0,98491.0,0.00813304]
[1733916802043,0.44216001,98492.0,98491.0,0.00813304]
[1733916802616,0.44416001,98492.0,98491.0,0.00813304]
[1733916803172,0.173,98491.0,98490.0,0.0001718]
[1733916803345,0.40125543,98491.0,98490.0,0.0001718]
[1733916803998,0.40126278,98491.0,98490.0,0.0001718]
[1733916804468,0.31002054,98491.0,98490.0,0.0001718]
[1733916805226,0.31202054,98491.0,98490.0,0.0001718]
[1733916805664,0.31176699,98491.0,98490.0,0.0001718]
[1733916805869,0.31576699,98491.0,98490.0,0.0001718]
[1733916806068,0.31176699,98491.0,98490.0,0.0001718]
[1733916806544,0.31476699,98491.0,98490.0,0.0001718]
[1733916807547,0.45163035,98491.0,98490.0,0.0001718]
[1733916807748,0.69129734,98491.0,98490.0,0.0001718]
[1733916808434,0.70164138,98491.0,98490.0,0.0001718]
[1733916808845,0.69864138,98491.0,98490.0,0.0001718]
[1733916809047,0.70764138,98491.0,98490.0,0.0011718]
[1733916809295,0.70564138,98491.0,98490.0,0.0011718]
[1733916809462,0.61156007,98491.0,98490.0,0.0001718]
[1733916810578,0.61756007,98491.0,98490.0,0.0011718]
[1733916810770,0.62656007,98491.0,98490.0,0.0021718]
[1733916811127,0.61156007,98491.0,98490.0,0.0001718]
[1733916811333,0.62456007,98491.0,98490.0,0.0011718]
[1733916811533,0.64825196,98491.0,98490.0,0.0011718]
[1733916811757,0.61556007,98491.0,98490.0,0.0001718]
[1733916811959,0.61156007,98491.0,98490.0,0.0011718]
[1733916812163,0.62356007,98491.0,98490.0,0.0011718]
[1733916812600,0.62330851,98491.0,98490.0,0.0011718]
[1733916813143,0.85143155,98491.0,98490.0,0.0011718]
[1733916813557,0.33185947,98491.0,98490.0,0.0787718]
[1733916813773,0.46873017,98491.0,98490.0,0.0787718]
[1733916813957,0.42310425,98491.0,98490.0,0.0787718]
[1733916814203,0.33185947,98491.0,98490.0,0.0787718]
[1733916820569,0.33185947,98491.0,98490.0,0.09504276]
[1733916820788,0.56001505,98491.0,98490.0,0.00930727]
[1733916820986,0.85123313,98491.0,98490.0,0.00930727]
[1733916821206,0.62307755,98491.0,98490.0,0.00930727]
[1733916822755,0.62296022,98491.0,98490.0,0.00930727]
[1733916822935,0.66991485,98491.0,98490.0,0.00930727]
[1733916824140,0.62296022,98491.0,98490.0,0.0011718]
[1733916826928,0.61896022,98491.0,98490.0,0.0011718]
[1733916827139,0.61860883,98491.0,98490.0,0.0011718]
[1733916827339,0.62260883,98491.0,98490.0,0.0011718]
[1733916827547,0.62260883,98491.0,98490.0,0.0001718]
[1733916827747,0.61060883,98491.0,98490.0,0.0001718]
[1733916828066,0.62260883,98491.0,98490.0,0.0011718]
[1733916828486,0.62460883,98491.0,98490.0,0.0021718]
[1733916828966,0.62760883,98491.0,98490.0,0.0021718]
[1733916831767,0.85580905,98491.0,98490.0,0.0021718]
[1733916831976,0.85580795,98491.0,98490.0,0.0021718]
[1733916833270,0.62760883,98491.0,98490.0,0.0021718]
[1733916835993,0.62824835,98491.0,98490.0,0.0021718]
[1733916836204,0.72052864,98491.0,98478.0,0.1263]
[1733916836369,0.36964284,98479.0,98478.0,0.1263]
[1733916836548,0.40133814,98479.0,98478.0,0.1263]
[1733916836752,0.784327,98479.0,98478.0,0.13448297]
[1733916837631,0.786327,98479.0,98478.0,0.05318297]
[1733916837771,0.786327,98479.0,98478.0,0.05373449]
[1733916837979,0.6016918,98479.0,98478.0,0.00055152]
[1733916838180,0.6026918,98479.0,98478.0,0.00055152]
[1733916838380,0.6046918,98479.0,98478.0,0.00055152]
[1733916838779,0.6016918,98479.0,98478.0,0.00055152]
[1733916838992,0.6086918,98479.0,98478.0,0.00155152]
[1733916839199,0.61927139,98479.0,98478.0,0.00155152]
[1733916839399,0.63986949,98479.0,98478.0,0.00155152]
[1733916840217,0.63586949,98479.0,98478.0,0.00055152]
[1733916840793,0.63886949,98479.0,98478.0,0.00055152]
[1733916841190,0.64186949,98479.0,98478.0,0.00055152]
[1733916841398,0.63586949,98479.0,98478.0,0.00055152]
[1733916841576,0.63886949,98479.0,98478.0,0.00055152]
[1733916841964,0.63586949,98479.0,98478.0,0.00055152]
[1733916842371,0.64186949,98479.0,98478.0,0.00055152]
[1733916843243,0.63908357,98479.0,98478.0,0.00055152]
[1733916843464,0.63308357,98479.0,98478.0,0.00055152]
[1733916844048,0.63508357,98479.0,98478.0,0.08275152]
[1733916844298,0.78006318,98479.0,98478.0,0.12915152]
[1733916844498,0.44253226,98479.0,98478.0,0.12915152]
[1733916844646,0.29760013,98479.0,98478.0,0.12915152]
[1733916845043,0.30560013,98479.0,98478.0,0.12915152]
[1733916845243,0.29960013,98479.0,98478.0,0.12915152]
[1733916845491,0.61453691,98479.0,98478.0,0.12915152]
[1733916846305,0.45952834,98479.0,98478.0,0.12915152]
[1733916846621,0.32660013,98479.0,98478.0,0.12915152]
[1733916846821,0.32860013,98479.0,98478.0,0.12915152]
[1733916847276,0.33460013,98479.0,98478.0,0.12915152]
[1733916847437,0.32660013,98479.0,98478.0,0.12915152]
[1733916847643,0.32860013,98479.0,98478.0,0.12915152]
[1733916847850,0.33360013,98479.0,98478.0,0.12915152]
[1733916848054,0.32760013,98479.0,98478.0,0.12915152]
[1733916848266,0.32960013,98479.0,98478.0,0.12915152]
[1733916848500,0.33160013,98479.0,98478.0,0.12915152]
[1733916849225,0.33160013,98479.0,98478.0,0.13732897]
[1733916849531,0.32660013,98479.0,98478.0,0.13732897]
[1733916849725,0.32260013,98479.0,98478.0,0.13732897]
[1733916849977,0.32460013,98479.0,98478.0,0.13732897]
[1733916850326,0.29390483,98479.0,98478.0,0.13732897]
[1733916850518,0.29390483,98479.0,98478.0,0.12915152]
[1733916850924,0.29290483,98479.0,98478.0,0.12915152]
[1733916851254,0.28990483,98479.0,98478.0,0.13732881]
[1733916851691,0.29190483,98479.0,98478.0,0.13732881]
[1733916853069,0.29190483,98479.0,98478.0,0.12915152]
[1733916853304,0.38320267,98479.0,98478.0,0.12915152]
[1733916853474,0.38020267,98479.0,98478.0,0.12915152]
[1733916853801,0.38120267,98479.0,98478.0,0.12915152]
[1733916854243,0.41491014,98479.0,98478.0,0.12915152]
[1733916854436,0.41291014,98479.0,98478.0,0.13732493]
[1733916854701,0.41291014,98479.0,98478.0,0.14549845]
[1733916854863,0.41491014,98479.0,98478.0,0.14549845]
[1733916855043,0.41391014,98479.0,98478.0,0.14549845]
[1733916855626,0.3226123,98479.0,98478.0,0.14549845]
[1733916856202,0.3206123,98479.0,98478.0,0.14549845]
[1733916856405,0.3216123,98479.0,98478.0,0.14549845]
[1733916856605,0.3216123,98479.0,98478.0,0.14550258]
[1733916856786,0.3206123,98479.0,98478.0,0.14550258]
[1733916857171,0.3206123,98479.0,98478.0,0.14650258]
[1733916857620,0.3216123,98479.0,98478.0,0.14650258]
[1733916857830,0.3206123,98479.0,98478.0,0.14550258]
[1733916858027,0.39578185,98479.0,98478.0,0.14550258]
[1733916858234,0.48708662,98479.0,98478.0,0.14550258]
[1733916859808,0.48708662,98479.0,98478.0,0.14650258]
[1733916860015,0.39578185,98479.0,98478.0,0.14750258]
[1733916860219,0.41191707,98479.0,98478.0,0.14750258]
[1733916860740,0.41191707,98479.0,98478.0,0.14650258]
[1733916861116,0.41191707,98479.0,98478.0,0.14550258]
[1733916862365,0.41291707,98479.0,98478.0,0.14550258]
[1733916862569,0.3216123,98479.0,98478.0,0.14550258]
[1733916862795,0.3206123,98479.0,98478.0,0.14550258]
[1733916862977,0.3206123,98479.0,98478.0,0.14650258]
[1733916863179,0.3206123,98479.0,98478.0,0.13832493]
[1733916863779,0.3206123,98479.0,98478.0,0.13833265]
[1733916863983,0.3206123,98479.0,98478.0,0.13733265]
[1733916864202,0.3206123,98479.0,98478.0,0.13833265]
[1733916864402,0.3226123,98479.0,98478.0,0.13833265]
[1733916864602,0.3226123,98479.0,98478.0,0.13733265]
[1733916865799,0.41169346,98479.0,98478.0,0.13733265]
[1733916865974,0.41069346,98479.0,98478.0,0.13733265]
[1733916866671,0.3206123,98479.0,98478.0,0.13733265]
[1733916866871,0.3216123,98479.0,98478.0,0.13733265]
[1733916867413,0.3206123,98479.0,98478.0,0.13733265]
[1733916867616,0.3226123,98479.0,98478.0,0.13733265]
[1733916868758,0.3206123,98479.0,98478.0,0.13733265]
[1733916869394,0.3226123,98479.0,98478.0,0.13733265]
[1733916869923,0.3236123,98479.0,98478.0,0.13733265]
[1733916870552,0.3226123,98479.0,98478.0,0.13733265]
[1733916871267,0.3206123,98479.0,98478.0,0.13733265]
[1733916871432,0.3226123,98479.0,98478.0,0.13733265]
[1733916871631,0.3206123,98479.0,98478.0,0.13733265]
[1733916872052,0.3226123,98479.0,98478.0,0.13733265]
[1733916872208,0.54649034,98479.0,98478.0,0.13733265]
[1733916872624,0.54849034,98479.0,98478.0,0.13733265]
[1733916872832,0.54749034,98479.0,98478.0,0.13733265]
[1733916873322,0.54649034,98479.0,98478.0,0.13733265]
[1733916873710,0.54749034,98479.0,98478.0,0.12915152]
[1733916873907,0.54749034,98479.0,98478.0,0.13732581]
[1733916874108,0.55051401,98479.0,98478.0,0.13732581]
[1733916874521,0.54751401,98479.0,98478.0,0.13732581]
[1733916874920,0.54951401,98479.0,98478.0,0.13732581]
[1733916875123,0.46063285,98479.0,98478.0,0.13732581]
[1733916875323,0.45863285,98479.0,98478.0,0.13732581]
[1733916875519,0.46063285,98479.0,98478.0,0.13732581]
[1733916875792,0.45963285,98479.0,98478.0,0.13732581]
[1733916875969,0.3206123,98479.0,98478.0,0.15040944]
[1733916876193,0.3216123,98479.0,98478.0,0.13732581]
[1733916876401,0.41060293,98479.0,98478.0,0.13732581]
[1733916876548,0.54762348,98479.0,98478.0,0.13732581]
[1733916876758,0.54762348,98479.0,98478.0,0.13732837]
[1733916876963,0.45863285,98479.0,98478.0,0.13732837]
[1733916877157,0.45763285,98479.0,98478.0,0.13732837]
[1733916877382,0.45963285,98479.0,98478.0,0.13732837]
[1733916877631,0.46063285,98479.0,98478.0,0.13732837]
[1733916877836,0.45863285,98479.0,98478.0,0.13732837]
[1733916878073,0.45963285,98479.0,98478.0,0.13732837]
[1733916878237,0.45863285,98479.0,98478.0,0.13732837]
[1733916878917,0.45763285,98479.0,98478.0,0.13732837]
[1733916879579,0.45863285,98479.0,98478.0,0.13732837]
[1733916879776,0.54762348,98479.0,98478.0,0.13732837]
[1733916880001,0.45863285,98479.0,98478.0,0.12915152]
[1733916880201,0.45763285,98479.0,98478.0,0.13732924]
[1733916880489,0.45763285,98479.0,98478.0,0.13832924]
[1733916880697,0.3206123,98479.0,98478.0,0.13832924]
[1733916883890,0.3206123,98479.0,98478.0,0.13832982]
[1733916886342,0.3206123,98479.0,98478.0,0.13732982]
[1733916886557,0.3226123,98479.0,98478.0,0.13732982]
[1733916886769,0.50530637,98479.0,98478.0,0.13732982]
[1733916886973,0.50930637,98479.0,98478.0,0.13732982]
[1733916887181,0.50330637,98479.0,98478.0,0.13732982]
[1733916887378,0.3206123,98479.0,98478.0,0.13732982]
[1733916887730,0.50737759,98479.0,98478.0,0.13732982]
[1733916887935,0.50337759,98479.0,98478.0,0.13732982]
[1733916888143,0.50737759,98479.0,98478.0,0.13732982]
[1733916888556,0.50937759,98479.0,98478.0,0.13732982]
[1733916888757,0.3266123,98479.0,98478.0,0.13732982]
[1733916889109,0.3246123,98479.0,98478.0,0.13732982]
[1733916889295,0.3256123,98479.0,98478.0,0.13732982]
[1733916889505,0.3216123,98479.0,98478.0,0.13732982]
[1733916889974,0.3246123,98479.0,98478.0,0.13732982]
[1733916890175,0.3256123,98479.0,98478.0,0.13732982]
[1733916890532,0.55606891,98479.0,98478.0,0.13732982]
[1733916891698,0.61369698,98479.0,98478.0,0.13732982]
[1733916891990,0.61369698,98479.0,98478.0,0.00055152]
[1733916891991,0.38524037,98479.0,98478.0,0.00055152]
[1733916892198,1.12412137,98479.0,98478.0,0.00055152]
[1733916892601,1.12312137,98479.0,98478.0,0.00055152]
[1733916892833,1.41338661,98479.0,98478.0,0.00055152]
[1733916893041,1.42038661,98479.0,98478.0,0.00055152]
[1733916893240,1.41438661,98479.0,98478.0,0.00055152]
[1733916893470,1.81400426,98479.0,98478.0,0.00055152]
[1733916893680,1.42238661,98479.0,98478.0,0.00055152]
[1733916894300,1.43138661,98479.0,98478.0,0.00055152]
[1733916894529,1.42238661,98479.0,98478.0,0.00055152]
[1733916894734,1.43138661,98479.0,98478.0,0.00055152]
[1733916894939,1.43538661,98479.0,98478.0,0.00055152]
[1733916895976,1.41738661,98479.0,98478.0,0.00055152]
[1733916896196,1.41647334,98479.0,98478.0,0.00055152]
[1733916896435,1.42547334,98479.0,98478.0,0.00055152]
[1733916898414,1.26855934,98479.0,98478.0,0.00055152]
[1733916898614,0.68659234,98479.0,98478.0,0.00055152]
[1733916899226,0.61596427,98479.0,98478.0,0.00055152]
[1733916899442,0.62496427,98479.0,98478.0,0.00055152]
[1733916900001,0.62896427,98479.0,98478.0,0.00055152]
[1733916900562,0.6289231,98479.0,98478.0,0.00055152]
[1733916901394,0.90189054,98479.0,98478.0,0.00055152]
[1733916901742,0.92542273,98479.0,98478.0,0.00055152]
[1733916903839,0.6289231,98479.0,98478.0,0.12815152]
[1733916904041,0.6059231,98479.0,98478.0,0.12815152]
[1733916904242,0.3106123,98479.0,98478.0,0.12815152]
[1733916904452,0.12890483,98479.0,98478.0,0.12815152]
[1733916905206,0.15190483,98479.0,98478.0,0.12815152]
[1733916905815,0.30190483,98479.0,98478.0,0.12815152]
[1733916906017,0.33359467,98479.0,98478.0,0.12815152]
[1733916906342,0.47051594,98479.0,98478.0,0.12815152]
[1733916906668,0.30190483,98479.0,98478.0,0.12815152]
[1733916907013,0.33359505,98479.0,98478.0,0.12815152]
[1733916907992,0.30190483,98479.0,98478.0,0.04935152]
[1733916908215,0.62944533,98479.0,98478.0,0.04935152]
[1733916908552,0.89799493,98479.0,98478.0,0.04935152]
[1733916909167,0.66978094,98479.0,98478.0,0.04935152]
[1733916910852,0.62944533,98479.0,98478.0,0.04935152]
[1733916911106,0.3335953,98479.0,98478.0,0.04935152]
[1733916911322,0.30190483,98479.0,98478.0,0.04935152]
[1733916911528,0.33359756,98479.0,98478.0,0.04935152]
[1733916912239,0.5161777,98479.0,98478.0,0.04935152]
[1733916912439,0.62953154,98479.0,98478.0,0.04935152]
[1733916912735,0.33359756,98479.0,98478.0,0.04935152]
[1733916913174,0.44752639,98479.0,98478.0,0.12815152]
[1733916913384,0.22018894,98479.0,98478.0,0.14456957]
[1733916913590,0.22018894,98479.0,98478.0,0.45770399]
[1733916913591,0.013,98479.0,98478.0,0.45770399]
[1733916913994,0.013,98479.0,98478.0,0.44949483]
[1733916913995,0.009,98479.0,98478.0,0.44949483]
[1733916914403,0.013,98479.0,98478.0,0.44949483]
[1733916914818,0.009,98479.0,98478.0,0.44949483]
[1733916915203,0.009,98479.0,98478.0,0.45149483]
[1733916915625,8.59e-05,98490.0,98489.0,0.2761]
[1733916915773,0.26595772,98490.0,98489.0,0.28430889]
[1733916915980,0.25541114,98490.0,98489.0,0.28430889]
[1733916916388,0.25541114,98490.0,98489.0,0.29251329]
[1733916917014,0.25541114,98490.0,98489.0,0.2843044]
[1733916918382,0.25541114,98490.0,98489.0,0.1343044]
[1733916918538,0.25541114,98490.0,98489.0,0.2843044]
[1733916919819,0.26593403,98490.0,98489.0,0.28429962]
[1733916921039,0.26693403,98490.0,98489.0,0.28429962]
[1733916921236,0.26693403,98490.0,98489.0,0.2761]
[1733916921436,0.26593403,98490.0,98489.0,0.1261]
[1733916921636,0.26593403,98490.0,98489.0,0.2761]
[1733916921837,0.26593403,98490.0,98489.0,0.2771]
[1733916922469,0.26793403,98490.0,98489.0,0.1271]
[1733916922698,0.26593403,98490.0,98489.0,0.2771]
[1733916923043,0.26693403,98490.0,98489.0,0.2771]
[1733916923445,0.26593403,98490.0,98489.0,0.2761]
[1733916923896,0.26693403,98490.0,98489.0,0.2761]
[1733916924519,0.26693403,98490.0,98489.0,0.2771]
[1733916925312,0.26593403,98490.0,98489.0,0.2771]
[1733916928267,0.26593403,98490.0,98489.0,0.28529603]
[1733916930079,0.26593403,98490.0,98489.0,0.28529751]
[1733916930871,0.26593403,98490.0,98489.0,0.29349518]
[1733916931295,0.26593403,98490.0,98489.0,0.28529767]
[1733916931916,0.26593403,98490.0,98489.0,0.28916671]
[1733916933756,0.26593403,98490.0,98489.0,0.29737014]
[1733916933962,0.26593403,98490.0,98489.0,0.28096904]
[1733916934164,0.26593403,98490.0,98489.0,0.28917248]
[1733916934365,0.26593403,98490.0,98489.0,0.28817248]
[1733916934532,0.26693403,98490.0,98489.0,0.28817248]
[1733916934922,0.26693403,98490.0,98489.0,0.29637902]
[1733916935896,0.26693403,98490.0,98489.0,0.83287902]
[1733916936108,0.01160879,98490.0,98489.0,0.44637902]
[1733916936343,0.01060879,98490.0,98489.0,0.44637902]
[1733916936919,0.01060879,98490.0,98489.0,0.43817248]
[1733916937122,0.01060879,98490.0,98489.0,0.45130203]
[1733916937371,0.01060879,98490.0,98489.0,0.46643349]
[1733916937784,0.01060879,98490.0,98489.0,0.46443349]
[1733916938216,0.01060879,98490.0,98489.0,0.46743349]
[1733916938631,0.01060879,98490.0,98489.0,0.46843349]
[1733916939079,0.01060879,98490.0,98489.0,0.46743349]
[1733916939284,0.01160879,98490.0,98489.0,1.00493349]
[1733916940330,0.01160879,98490.0,98489.0,0.99674293]
[1733916941019,0.01160879,98490.0,98489.0,1.00495614]
[1733916941231,0.0010859,98490.0,98489.0,1.00495614]
[1733916943737,0.0010859,98490.0,98489.0,1.00495881]
[1733916943952,0.0010859,98490.0,98489.0,1.02631879]
[1733916944156,0.0010859,98490.0,98489.0,0.99676118]
[1733916946130,0.0010859,98490.0,98489.0,0.98361608]
[1733916946923,0.0010859,98490.0,98489.0,0.98061608]
[1733916947157,8.59e-05,98490.0,98489.0,0.98782014]
[1733916947382,8.59e-05,98490.0,98489.0,0.99082014]
[1733916947736,8.59e-05,98490.0,98489.0,0.99903167]
[1733916948632,0.0010859,98490.0,98489.0,1.00403167]
[1733916948817,0.0010859,98490.0,98489.0,1.00103167]
[1733916949268,8.59e-05,98500.0,98499.0,0.4318]
[1733916949465,8.59e-05,98500.0,98499.0,0.44001147]
[1733916949676,8.59e-05,98500.0,98499.0,0.44387056]
[1733916950200,8.59e-05,98500.0,98499.0,0.45701019]
[1733916950419,8.59e-05,98500.0,98499.0,0.46101019]
[1733916950827,8.59e-05,98500.0,98499.0,0.46401019]
[1733916951215,8.59e-05,98500.0,98499.0,1.00051019]
[1733916954209,8.59e-05,98500.0,98499.0,0.97915909]
[1733916954740,8.59e-05,98500.0,98499.0,1.00542192]
[1733916955216,8.59e-05,98500.0,98499.0,1.01362817]
[1733916956988,8.59e-05,98500.0,98499.0,1.02183517]
[1733916957206,8.59e-05,98500.0,98499.0,0.17220363]
[1733916957207,0.25541114,98500.0,98499.0,0.17220363]
[1733916957379,0.25541114,98500.0,98499.0,0.10343793]
[1733916957578,0.25541114,98500.0,98499.0,0.05353793]
[1733916958649,0.25541114,98500.0,98499.0,0.20353793]
[1733916958864,0.25541114,98500.0,98499.0,0.19653793]
[1733916959069,0.25541114,98500.0,98499.0,0.18833093]
[1733916959267,0.25641114,98500.0,98499.0,0.18833093]
[1733916959561,0.25541114,98500.0,98499.0,0.34654242]
[1733916959843,0.25641114,98500.0,98499.0,0.34654242]
[1733916960047,0.25641114,98500.0,98499.0,0.34754242]
[1733916960264,0.25541114,98500.0,98499.0,0.88404242]
[1733916960450,0.25541114,98500.0,98499.0,0.73404242]
[1733916960750,0.25541114,98500.0,98499.0,0.73304242]
[1733916960947,0.25541114,98500.0,98499.0,0.73404242]
[1733916961459,0.25541114,98500.0,98499.0,0.58404242]
[1733916962085,0.25541114,98500.0,98499.0,0.58504242]
[1733916962303,0.25541114,98500.0,98499.0,0.58404242]
[1733916963018,0.25541114,98500.0,98499.0,0.56990812]
[1733916963216,0.25541114,98500.0,98499.0,0.56169663]
[1733916963416,0.25541114,98500.0,98499.0,0.02619663]
[1733916963847,0.25541114,98500.0,98499.0,0.02133754]
[1733916964201,0.25741114,98500.0,98499.0,0.02133754]
[1733916965392,0.25941114,98500.0,98499.0,0.01313129]
[1733916965793,0.26141114,98500.0,98499.0,0.0082211]
[1733916966023,0.15,98499.0,98486.0,0.5365]
[1733916966219,0.15,98497.0,98487.0,0.54471709]
[1733916966427,0.15,98495.0,98488.0,0.00821709]
[1733916966595,0.10532524,98494.0,98489.0,0.00821709]
[1733916966796,0.15,98493.0,98489.0,0.01255561]
[1733916967002,0.15,98491.0,98490.0,0.01314863]
[1733916967197,0.25532524,98491.0,98490.0,0.0174865]
[1733916967859,0.25532524,98491.0,98490.0,0.1674865]
[1733916968377,0.25532524,98491.0,98490.0,0.17570359]
[1733916969357,0.25532524,98491.0,98490.0,0.1674865]
[1733916969558,0.25532524,98491.0,98490.0,0.18984416]
[1733916970557,0.25532524,98491.0,98490.0,0.17669553]
[1733916970752,0.25532524,98491.0,98490.0,0.02669553]
[1733916970959,0.25532524,98491.0,98490.0,0.17669553]
[1733916971772,0.25532524,98491.0,98490.0,0.17569553]
[1733916972034,0.25532524,98491.0,98490.0,0.17669553]
[1733916972234,0.25532524,98491.0,98490.0,0.17769553]
[1733916972661,0.25532524,98491.0,98490.0,0.02669553]
[1733916972874,0.25532524,98491.0,98490.0,0.17769553]
[1733916973088,0.25532524,98491.0,98490.0,0.16945507]
[1733916973287,0.25532524,98491.0,98490.0,0.16845507]
[1733916973696,0.25532524,98491.0,98490.0,0.17765251]
[1733916973893,0.25532524,98491.0,98490.0,0.17782431]
[1733916974225,0.25532524,98491.0,98490.0,0.17682431]
[1733916975093,0.25532524,98491.0,98490.0,0.17582431]
[1733916975287,0.25532524,98491.0,98490.0,0.17782431]
[1733916975742,0.25532524,98491.0,98490.0,0.17582431]
[1733916975953,0.25532524,98491.0,98490.0,0.02582431]
[1733916976168,0.25532524,98491.0,98490.0,0.02982431]
[1733916976573,0.25532524,98491.0,98490.0,0.00450967]
[1733916976833,0.25532524,98491.0,98490.0,0.00750967]
[1733916977035,0.25532524,98491.0,98490.0,0.00950967]
[1733916977395,0.25532524,98491.0,98490.0,0.02263076]
[1733916977595,0.25532524,98491.0,98490.0,0.01963076]
[1733916977954,0.25532524,98491.0,98490.0,0.02783064]
[1733916978784,0.25532524,98491.0,98490.0,0.02583064]
[1733916978983,0.25532524,98491.0,98490.0,0.17583064]
[1733916979184,0.25532524,98491.0,98490.0,0.02583064]
[1733916979411,0.25532524,98491.0,98490.0,0.02449277]
[1733916979613,0.25532524,98491.0,98490.0,0.01137364]
[1733916979855,0.25532524,98491.0,98490.0,0.01206977]
[1733916980059,0.25532524,98491.0,98490.0,0.01406977]
[1733916980243,0.25532524,98491.0,98490.0,0.01437364]
[1733916980446,0.25532524,98491.0,98490.0,0.0001718]
[1733916980667,0.25532524,98491.0,98490.0,0.0011718]
[1733916980892,0.25532524,98491.0,98490.0,0.0021718]
[1733916981094,0.25532524,98491.0,98490.0,0.0011718]
[1733916981973,0.25532524,98491.0,98490.0,0.0001718]
[1733916982174,0.25532524,98491.0,98490.0,0.00486793]
[1733916982525,0.25532524,98491.0,98490.0,0.0021718]
[1733916982705,0.25532524,98491.0,98490.0,0.0011718]
[1733916982921,0.25532524,98491.0,98490.0,0.0001718]
[1733916983150,0.25532524,98491.0,98490.0,0.0011718]
[1733916983572,0.25532524,98491.0,98490.0,0.0001718]
[1733916984000,0.26232524,98491.0,98490.0,0.0011718]
[1733916984208,0.29302412,98491.0,98490.0,0.0001718]
[1733916984654,0.39052412,98491.0,98490.0,0.0011718]
[1733916984866,0.42218272,98491.0,98490.0,0.0011718]
[1733916985080,0.47764925,98491.0,98490.0,0.0011718]
[1733916985206,0.47564925,98491.0,98490.0,0.0011718]
[1733916985703,0.47764925,98491.0,98490.0,0.0011718]
[1733916985911,0.38014925,98491.0,98490.0,0.0001718]
[1733916986308,0.38514925,98491.0,98490.0,0.0011718]
[1733916986510,0.38314925,98491.0,98490.0,0.0011718]
[1733916986715,0.26032524,98491.0,98490.0,0.0011718]
[1733916986918,0.25732524,98491.0,98490.0,0.0001718]
[1733916987372,0.26232524,98491.0,98490.0,0.0011718]
[1733916987583,0.25732524,98491.0,98490.0,0.0001718]
[1733916988009,0.26992859,98491.0,98490.0,0.0001718]
[1733916988413,0.26792859,98491.0,98490.0,0.0001718]
[1733916988849,0.26992859,98491.0,98490.0,0.0001718]
[1733916989190,0.26292859,98491.0,98490.0,0.0001718]
[1733916989399,0.26692859,98491.0,98490.0,0.0001718]